[Event "Early-Titled-Tuesday-Blitz-January-23-2024"]
[Site "Chess.com"]
[Date "2024.01.23"]
[Round "7"]
[White "hsd2016"]
[Black "deribas12345"]
[Result "1/2-1/2"]
[WhiteElo "2296"]
[BlackElo "2454"]
[TimeControl "180+1"]
[EndTime "9:17:56 PST"]
[Termination "Game drawn - insufficient material"]

1. e4 {[%clk 0:03:00.9]} 1... c5 {[%clk 0:02:59.8]} 2. Nf3 {[%clk 0:03:00.9]}
2... d6 {[%clk 0:02:59.8]} 3. d4 {[%clk 0:03:01]} 3... cxd4 {[%clk 0:03:00.3]}
4. Nxd4 {[%clk 0:03:01.9]} 4... Nf6 {[%clk 0:03:00.8]} 5. Nc3 {[%clk 0:03:02.2]}
5... a6 {[%clk 0:03:01.3]} 6. Rg1 {[%clk 0:03:02.4]} 6... e5 {[%clk 0:03:00.8]}
7. Nb3 {[%clk 0:03:02.2]} 7... Nc6 {[%clk 0:02:56.8]} 8. g4 {[%clk 0:03:01.1]}
8... Be7 {[%clk 0:02:56.8]} 9. g5 {[%clk 0:03:00.1]} 9... Nd7 {[%clk 0:02:55.4]}
10. Nd5 {[%clk 0:02:54.3]} 10... O-O {[%clk 0:02:51.5]} 11. h4 {[%clk
0:02:53.8]} 11... Nb6 {[%clk 0:02:46.2]} 12. h5 {[%clk 0:02:48.4]} 12... Nxd5
{[%clk 0:02:43.6]} 13. exd5 {[%clk 0:02:49.3]} 13... Na5 {[%clk 0:02:31.9]} 14.
g6 {[%clk 0:02:48.6]} 14... Nxb3 {[%clk 0:02:25.4]} 15. axb3 {[%clk 0:02:48.8]}
15... Bf6 {[%clk 0:02:20.5]} 16. gxh7+ {[%clk 0:02:45.7]} 16... Kh8 {[%clk
0:02:20.3]} 17. Bd3 {[%clk 0:02:42.4]} 17... e4 {[%clk 0:02:18.1]} 18. Bxe4
{[%clk 0:02:42.2]} 18... Re8 {[%clk 0:02:13.9]} 19. f3 {[%clk 0:02:42.6]} 19...
Bf5 {[%clk 0:02:12.2]} 20. Qd3 {[%clk 0:02:37]} 20... Qb6 {[%clk 0:02:00.1]} 21.
Be3 {[%clk 0:02:34.2]} 21... Bxe4 {[%clk 0:01:59.9]} 22. fxe4 {[%clk 0:02:33.7]}
22... Qb4+ {[%clk 0:02:00]} 23. c3 {[%clk 0:02:24.7]} 23... Qxe4 {[%clk
0:02:00]} 24. Qxe4 {[%clk 0:02:22.5]} 24... Rxe4 {[%clk 0:02:00.9]} 25. Kd2
{[%clk 0:02:22.6]} 25... Rae8 {[%clk 0:01:59.5]} 26. Rae1 {[%clk 0:02:22.1]}
26... Kxh7 {[%clk 0:01:58.2]} 27. Bf2 {[%clk 0:02:04]} 27... Rxe1 {[%clk
0:01:52.2]} 28. Rxe1 {[%clk 0:02:04.9]} 28... Rxe1 {[%clk 0:01:48.1]} 29. Bxe1
{[%clk 0:02:05]} 29... Kh6 {[%clk 0:01:48.3]} 30. Bg3 {[%clk 0:02:05.3]} 30...
Be7 {[%clk 0:01:46.9]} 31. c4 {[%clk 0:02:03]} 31... Kxh5 {[%clk 0:01:37]} 32.
c5 {[%clk 0:01:45.2]} 32... dxc5 {[%clk 0:01:36.4]} 33. Bc7 {[%clk 0:01:45]}
33... Kg4 {[%clk 0:01:15.4]} 34. d6 {[%clk 0:01:44.2]} 34... Bf6 {[%clk
0:01:10.9]} 35. d7 {[%clk 0:01:44]} 35... Kf3 {[%clk 0:01:05.4]} 36. d8=Q {[%clk
0:00:40.3]} 36... Bxd8 {[%clk 0:01:04.9]} 37. Bxd8 {[%clk 0:00:41.2]} 37... f5
{[%clk 0:01:02.6]} 38. Kd3 {[%clk 0:00:37.7]} 38... f4 {[%clk 0:00:59.4]} 39.
Be7 {[%clk 0:00:29.4]} 39... Kg3 {[%clk 0:00:50.1]} 40. Bxc5 {[%clk 0:00:21.9]}
40... g5 {[%clk 0:00:49]} 41. Ke2 {[%clk 0:00:20.9]} 41... f3+ {[%clk
0:00:44.1]} 42. Kf1 {[%clk 0:00:21.1]} 42... g4 {[%clk 0:00:43.2]} 43. Bd6+
{[%clk 0:00:20.2]} 43... Kh4 {[%clk 0:00:41.3]} 44. Kf2 {[%clk 0:00:20.6]} 44...
Kg5 {[%clk 0:00:41.7]} 45. Kg3 {[%clk 0:00:20.9]} 45... Kf5 {[%clk 0:00:42.2]}
46. Bc5 {[%clk 0:00:21.2]} 46... Ke4 {[%clk 0:00:42.5]} 47. Kxg4 {[%clk
0:00:21.1]} 47... Kd3 {[%clk 0:00:42.7]} 48. Kxf3 {[%clk 0:00:20.3]} 48... Kc2
{[%clk 0:00:42.7]} 49. b4 {[%clk 0:00:20.7]} 49... Kxb2 {[%clk 0:00:42.1]} 50.
Ke4 {[%clk 0:00:20.3]} 50... Kb3 {[%clk 0:00:40.4]} 51. Kd4 {[%clk 0:00:18.2]}
51... Ka4 {[%clk 0:00:36.5]} 52. Kc4 {[%clk 0:00:18.5]} 52... b5+ {[%clk
0:00:36.3]} 53. Kd5 {[%clk 0:00:17.1]} 53... a5 {[%clk 0:00:37.2]} 54. bxa5
{[%clk 0:00:11.8]} 54... Kxa5 {[%clk 0:00:37.5]} 55. Kd4 {[%clk 0:00:12.4]}
55... Ka4 {[%clk 0:00:37.9]} 56. Kc3 {[%clk 0:00:12.6]} 56... b4+ {[%clk
0:00:38.2]} 57. Bxb4 {[%clk 0:00:12.8]} 1/2-1/2

[Event "Early-Titled-Tuesday-Blitz-January-23-2024"]
[Site "Chess.com"]
[Date "2024.01.23"]
[Round "7"]
[White "stepanosinovsky"]
[Black "Ezov"]
[Result "1-0"]
[WhiteElo "2372"]
[BlackElo "2210"]
[TimeControl "180+1"]
[EndTime "9:17:58 PST"]
[Termination "stepanosinovsky won on time"]

1. e4 {[%clk 0:02:52.5]} 1... e6 {[%clk 0:02:57.7]} 2. d4 {[%clk 0:02:46.1]}
2... d5 {[%clk 0:02:58.6]} 3. Nc3 {[%clk 0:02:43.9]} 3... Bb4 {[%clk 0:02:56.3]}
4. e5 {[%clk 0:02:43]} 4... c5 {[%clk 0:02:53.8]} 5. a3 {[%clk 0:02:34.3]} 5...
cxd4 {[%clk 0:02:51.4]} 6. axb4 {[%clk 0:02:28.4]} 6... dxc3 {[%clk 0:02:49.4]}
7. bxc3 {[%clk 0:02:24.4]} 7... Qc7 {[%clk 0:02:47.6]} 8. Nf3 {[%clk 0:02:24.5]}
8... Ne7 {[%clk 0:02:36.6]} 9. Bd3 {[%clk 0:02:18.3]} 9... Nbc6 {[%clk 0:02:32]}
10. Qe2 {[%clk 0:01:09.9]} 10... Nxb4 {[%clk 0:02:20.9]} 11. cxb4 {[%clk
0:00:29.1]} 11... Qc3+ {[%clk 0:02:17.5]} 12. Nd2 {[%clk 0:00:26.8]} 12... Qxa1
{[%clk 0:02:14.4]} 13. O-O {[%clk 0:00:27.7]} 13... Bd7 {[%clk 0:01:43]} 14. Nb3
{[%clk 0:00:22.6]} 14... Qc3 {[%clk 0:01:38.8]} 15. Bd2 {[%clk 0:00:16.9]} 15...
Qc7 {[%clk 0:01:31.6]} 16. Re1 {[%clk 0:00:17.8]} 16... O-O {[%clk 0:01:18.3]}
17. Qh5 {[%clk 0:00:16.9]} 17... Ng6 {[%clk 0:01:14.2]} 18. Re3 {[%clk
0:00:16.7]} 18... Be8 {[%clk 0:00:54.8]} 19. Rh3 {[%clk 0:00:15.9]} 19... h6
{[%clk 0:00:47.2]} 20. Bxh6 {[%clk 0:00:14.5]} 20... Qxe5 {[%clk 0:00:44.1]} 21.
Bg5 {[%clk 0:00:14.7]} 21... Qe1+ {[%clk 0:00:34.7]} 22. Bf1 {[%clk 0:00:14.7]}
22... f6 {[%clk 0:00:33.1]} 23. Qh7+ {[%clk 0:00:13.2]} 23... Kf7 {[%clk
0:00:31.8]} 24. Bh6 {[%clk 0:00:13.5]} 24... Rg8 {[%clk 0:00:27.3]} 25. Rg3
{[%clk 0:00:13.5]} 25... Kf8 {[%clk 0:00:15.6]} 26. Re3 {[%clk 0:00:08.4]} 26...
Qxb4 {[%clk 0:00:11.1]} 27. Nc5 {[%clk 0:00:09.2]} 27... Qxc5 {[%clk 0:00:06.6]}
28. Bd3 {[%clk 0:00:08.6]} 28... Ne5 {[%clk 0:00:03]} 29. Rxe5 {[%clk
0:00:06.4]} 29... Qc3 {[%clk 0:00:02.4]} 30. Re3 {[%clk 0:00:03.2]} 30... Qa1+
{[%clk 0:00:03.3]} 31. Bf1 {[%clk 0:00:02.9]} 31... Bf7 {[%clk 0:00:03.2]} 32.
Bf4 {[%clk 0:00:01.8]} 32... Qd4 {[%clk 0:00:02.6]} 33. Bd6+ {[%clk 0:00:01.5]}
33... Ke8 {[%clk 0:00:01.1]} 34. Bb5+ {[%clk 0:00:01.1]} 1-0

[Event "Early-Titled-Tuesday-Blitz-January-23-2024"]
[Site "Chess.com"]
[Date "2024.01.23"]
[Round "7"]
[White "LileKoridze"]
[Black "Reality-Stone"]
[Result "0-1"]
[WhiteElo "2320"]
[BlackElo "2629"]
[TimeControl "180+1"]
[EndTime "9:17:59 PST"]
[Termination "Reality-Stone won by resignation"]

1. d4 {[%clk 0:03:00.9]} 1... d5 {[%clk 0:02:56.4]} 2. c4 {[%clk 0:03:01]} 2...
e6 {[%clk 0:02:54.9]} 3. Nf3 {[%clk 0:03:01]} 3... Nf6 {[%clk 0:02:54.5]} 4. g3
{[%clk 0:03:01.1]} 4... dxc4 {[%clk 0:02:52.2]} 5. Bg2 {[%clk 0:03:01.2]} 5...
a6 {[%clk 0:02:51.7]} 6. O-O {[%clk 0:03:00.9]} 6... Nc6 {[%clk 0:02:52]} 7. Nc3
{[%clk 0:02:59.8]} 7... Bb4 {[%clk 0:02:46.7]} 8. e4 {[%clk 0:02:23.9]} 8...
Bxc3 {[%clk 0:02:43.7]} 9. bxc3 {[%clk 0:02:23.7]} 9... Nxe4 {[%clk 0:02:44.2]}
10. Ba3 {[%clk 0:02:23.3]} 10... Nd6 {[%clk 0:02:41.7]} 11. Ne5 {[%clk
0:02:22.9]} 11... O-O {[%clk 0:02:34.8]} 12. Nxc6 {[%clk 0:02:22.4]} 12... bxc6
{[%clk 0:02:35.7]} 13. Bxc6 {[%clk 0:02:22.6]} 13... Rb8 {[%clk 0:02:32.4]} 14.
Qa4 {[%clk 0:02:01.2]} 14... Bb7 {[%clk 0:02:21.6]} 15. Bxb7 {[%clk 0:01:57]}
15... Rxb7 {[%clk 0:02:22.5]} 16. Qxa6 {[%clk 0:01:48.2]} 16... Qa8 {[%clk
0:02:15.3]} 17. Qxa8 {[%clk 0:01:40.8]} 17... Rxa8 {[%clk 0:02:16.2]} 18. Bb4
{[%clk 0:01:33.3]} 18... Rba7 {[%clk 0:02:12.4]} 19. a3 {[%clk 0:01:27.4]} 19...
Nb5 {[%clk 0:02:05.6]} 20. Rfb1 {[%clk 0:01:24.3]} 20... c6 {[%clk 0:02:05.5]}
21. Bc5 {[%clk 0:01:21.2]} 21... Ra4 {[%clk 0:02:04.4]} 22. Rb4 {[%clk
0:01:14.7]} 22... Nxc3 {[%clk 0:02:00.9]} 23. Rb7 {[%clk 0:01:10]} 23... Nb5
{[%clk 0:01:56.9]} 24. Rb6 {[%clk 0:01:08]} 24... c3 {[%clk 0:01:44.7]} 25. Rxc6
{[%clk 0:01:07]} 25... Rc4 {[%clk 0:01:44.3]} 26. Rb6 {[%clk 0:01:02.7]} 26...
Nc7 {[%clk 0:01:31.7]} 27. Rab1 {[%clk 0:00:54.8]} 27... h5 {[%clk 0:01:30.4]}
28. Rb8+ {[%clk 0:00:44.6]} 28... Rxb8 {[%clk 0:01:29.4]} 29. Rxb8+ {[%clk
0:00:45.5]} 29... Kh7 {[%clk 0:01:30]} 30. Rb1 {[%clk 0:00:46.1]} 30... Nd5
{[%clk 0:01:16.7]} 31. Kf1 {[%clk 0:00:44.7]} 31... Kg6 {[%clk 0:01:08.8]} 32.
Rc1 {[%clk 0:00:40.3]} 32... Kf5 {[%clk 0:01:04.5]} 33. Ke2 {[%clk 0:00:39.8]}
33... Ra4 {[%clk 0:00:54.5]} 34. Kd3 {[%clk 0:00:38.9]} 34... Kg4 {[%clk
0:00:51.4]} 35. Ke2 {[%clk 0:00:33.3]} 35... Kh3 {[%clk 0:00:49.1]} 36. Kf3
{[%clk 0:00:28.9]} 36... g5 {[%clk 0:00:46.7]} 37. Rh1 {[%clk 0:00:26.1]} 37...
f5 {[%clk 0:00:40.2]} 38. Re1 {[%clk 0:00:25.2]} 38... Rc4 {[%clk 0:00:36.9]}
39. Ke2 {[%clk 0:00:24.9]} 39... c2 {[%clk 0:00:24.2]} 40. Rc1 {[%clk
0:00:24.5]} 40... Kxh2 {[%clk 0:00:20.1]} 41. Kd3 {[%clk 0:00:25]} 41... Rc3+
{[%clk 0:00:19.5]} 42. Kd2 {[%clk 0:00:25.5]} 42... Kg2 {[%clk 0:00:18.3]} 43.
Rxc2 {[%clk 0:00:25.4]} 43... Rf3 {[%clk 0:00:16.8]} 44. a4 {[%clk 0:00:24.4]}
44... h4 {[%clk 0:00:16.3]} 45. a5 {[%clk 0:00:22.4]} 45... Rxf2+ {[%clk
0:00:15.4]} 46. Kc1 {[%clk 0:00:22.1]} 46... h3 {[%clk 0:00:13.6]} 47. a6 {[%clk
0:00:22.6]} 47... h2 {[%clk 0:00:14]} 48. a7 {[%clk 0:00:23]} 48... h1=Q+ {[%clk
0:00:14.4]} 49. Kb2 {[%clk 0:00:23.6]} 49... Rxc2+ {[%clk 0:00:14.8]} 50. Kxc2
{[%clk 0:00:24]} 50... Qa1 {[%clk 0:00:15.3]} 0-1

[Event "Early-Titled-Tuesday-Blitz-January-23-2024"]
[Site "Chess.com"]
[Date "2024.01.23"]
[Round "7"]
[White "AlexOstrovskiy"]
[Black "AttilaTurzo"]
[Result "1-0"]
[WhiteElo "2782"]
[BlackElo "2499"]
[TimeControl "180+1"]
[EndTime "9:17:59 PST"]
[Termination "AlexOstrovskiy won by resignation"]

1. e4 {[%clk 0:03:00.9]} 1... c5 {[%clk 0:02:59.8]} 2. Nc3 {[%clk 0:02:59.9]}
2... d6 {[%clk 0:02:58.1]} 3. d4 {[%clk 0:02:59.8]} 3... cxd4 {[%clk 0:02:57.2]}
4. Qxd4 {[%clk 0:03:00.7]} 4... a6 {[%clk 0:02:52.7]} 5. b3 {[%clk 0:03:00.7]}
5... Nf6 {[%clk 0:02:50.2]} 6. Bb2 {[%clk 0:03:00.6]} 6... e5 {[%clk 0:02:50.3]}
7. Qd2 {[%clk 0:02:58.9]} 7... Be7 {[%clk 0:02:50]} 8. O-O-O {[%clk 0:02:57.8]}
8... Be6 {[%clk 0:02:46.3]} 9. Kb1 {[%clk 0:02:53.4]} 9... Nbd7 {[%clk
0:02:44.5]} 10. f3 {[%clk 0:02:49.7]} 10... h5 {[%clk 0:02:43.3]} 11. Nh3 {[%clk
0:02:45.5]} 11... Qc7 {[%clk 0:02:25]} 12. Ng5 {[%clk 0:02:44.8]} 12... O-O-O
{[%clk 0:02:20.5]} 13. h4 {[%clk 0:02:37.3]} 13... Kb8 {[%clk 0:02:20]} 14. g3
{[%clk 0:02:25.9]} 14... Nh7 {[%clk 0:02:12.2]} 15. Nxh7 {[%clk 0:02:12.9]}
15... Rxh7 {[%clk 0:02:11]} 16. Nd5 {[%clk 0:02:13.8]} 16... Bxd5 {[%clk
0:02:05.3]} 17. Qxd5 {[%clk 0:02:14.7]} 17... g6 {[%clk 0:01:51.6]} 18. Qd2
{[%clk 0:01:33.4]} 18... Nb6 {[%clk 0:01:38]} 19. Qa5 {[%clk 0:01:22.9]} 19...
Nc8 {[%clk 0:01:26.9]} 20. Qxc7+ {[%clk 0:01:18.6]} 20... Kxc7 {[%clk
0:01:27.1]} 21. a4 {[%clk 0:01:19.5]} 21... Kc6 {[%clk 0:01:19]} 22. a5 {[%clk
0:01:13.6]} 22... Kc7 {[%clk 0:00:43.8]} 23. Rh2 {[%clk 0:01:10.1]} 23... Na7
{[%clk 0:00:40.7]} 24. Rhd2 {[%clk 0:01:05.9]} 24... Nc6 {[%clk 0:00:40.8]} 25.
Bc3 {[%clk 0:01:06.3]} 25... f5 {[%clk 0:00:37.7]} 26. exf5 {[%clk 0:00:43.9]}
26... gxf5 {[%clk 0:00:37.1]} 27. Bd3 {[%clk 0:00:44.1]} 27... Rf7 {[%clk
0:00:34.5]} 28. Re2 {[%clk 0:00:40.3]} 28... f4 {[%clk 0:00:27.3]} 29. Rg2
{[%clk 0:00:12.7]} 29... fxg3 {[%clk 0:00:18.8]} 30. Rxg3 {[%clk 0:00:13.6]}
30... Bxh4 {[%clk 0:00:15.6]} 31. Rh3 {[%clk 0:00:14]} 31... Rf4 {[%clk
0:00:14.7]} 32. Bd2 {[%clk 0:00:10.6]} 32... Rd4 {[%clk 0:00:11.6]} 33. Be3
{[%clk 0:00:10.3]} 33... Rxd3 {[%clk 0:00:07.2]} 34. Rxd3 {[%clk 0:00:09]} 34...
Be7 {[%clk 0:00:07.2]} 35. Bb6+ {[%clk 0:00:09.3]} 35... Kd7 {[%clk 0:00:06.2]}
36. Bxd8 {[%clk 0:00:10.2]} 36... Nxd8 {[%clk 0:00:06.4]} 37. Rxh5 {[%clk
0:00:10.5]} 37... Ne6 {[%clk 0:00:06.7]} 38. Rh7 {[%clk 0:00:09.7]} 38... Nc5
{[%clk 0:00:06]} 39. Rd1 {[%clk 0:00:08]} 39... Ke6 {[%clk 0:00:05.7]} 40. Rg1
{[%clk 0:00:08.2]} 40... d5 {[%clk 0:00:05]} 41. Rg6+ {[%clk 0:00:07.4]} 41...
Bf6 {[%clk 0:00:04.6]} 42. b4 {[%clk 0:00:05.6]} 42... Nd7 {[%clk 0:00:01.9]}
43. Rxd7 {[%clk 0:00:05.7]} 43... Kxd7 {[%clk 0:00:02.7]} 44. Rxf6 {[%clk
0:00:06.1]} 1-0

[Event "Early-Titled-Tuesday-Blitz-January-23-2024"]
[Site "Chess.com"]
[Date "2024.01.23"]
[Round "7"]
[White "SpongeBob_03"]
[Black "Eloist"]
[Result "1-0"]
[WhiteElo "2230"]
[BlackElo "2410"]
[TimeControl "180+1"]
[EndTime "9:18:00 PST"]
[Termination "SpongeBob_03 won on time"]

1. d4 {[%clk 0:02:58.1]} 1... e6 {[%clk 0:03:00]} 2. c4 {[%clk 0:02:54.1]} 2...
Nf6 {[%clk 0:02:59.9]} 3. Nc3 {[%clk 0:02:50.4]} 3... Bb4 {[%clk 0:02:59.5]} 4.
Qc2 {[%clk 0:02:48.6]} 4... c5 {[%clk 0:02:58.8]} 5. dxc5 {[%clk 0:02:47.6]}
5... O-O {[%clk 0:02:57.6]} 6. e3 {[%clk 0:02:46.7]} 6... Na6 {[%clk 0:02:54.4]}
7. a3 {[%clk 0:02:42.3]} 7... Bxc3+ {[%clk 0:02:51.4]} 8. Qxc3 {[%clk
0:02:42.7]} 8... Nxc5 {[%clk 0:02:51.1]} 9. f3 {[%clk 0:02:27.3]} 9... d5 {[%clk
0:02:39.2]} 10. b4 {[%clk 0:02:20.2]} 10... Ncd7 {[%clk 0:02:22.2]} 11. Bb2
{[%clk 0:02:16.9]} 11... Nb6 {[%clk 0:02:16.5]} 12. Rd1 {[%clk 0:02:05.8]} 12...
Na4 {[%clk 0:02:12.8]} 13. Qc2 {[%clk 0:01:56.8]} 13... Nxb2 {[%clk 0:02:09.2]}
14. Qxb2 {[%clk 0:01:57.7]} 14... Qc7 {[%clk 0:02:00.8]} 15. Rc1 {[%clk
0:01:53.6]} 15... Qb6 {[%clk 0:01:48.3]} 16. Qb3 {[%clk 0:01:20.9]} 16... Bd7
{[%clk 0:01:33]} 17. c5 {[%clk 0:01:08.5]} 17... Qc7 {[%clk 0:01:31.1]} 18. Bd3
{[%clk 0:01:07.9]} 18... e5 {[%clk 0:01:27.5]} 19. Ne2 {[%clk 0:01:06.1]} 19...
e4 {[%clk 0:01:18]} 20. fxe4 {[%clk 0:00:59]} 20... dxe4 {[%clk 0:01:14.9]} 21.
Bc4 {[%clk 0:00:59.2]} 21... Qe5 {[%clk 0:00:59.4]} 22. O-O {[%clk 0:00:51.3]}
22... b5 {[%clk 0:00:52.9]} 23. cxb6 {[%clk 0:00:47.5]} 23... axb6 {[%clk
0:00:53.1]} 24. Nd4 {[%clk 0:00:43.6]} 24... Ng4 {[%clk 0:00:21.4]} 25. Rf4
{[%clk 0:00:26.8]} 25... g5 {[%clk 0:00:17.4]} 26. Rcf1 {[%clk 0:00:19.5]} 26...
gxf4 {[%clk 0:00:16]} 27. Rxf4 {[%clk 0:00:20.4]} 27... Qg7 {[%clk 0:00:11.3]}
28. h3 {[%clk 0:00:20.1]} 28... Ne5 {[%clk 0:00:11.2]} 29. Bf1 {[%clk
0:00:17.1]} 29... Kh8 {[%clk 0:00:07.7]} 30. Rxe4 {[%clk 0:00:17.3]} 30... f6
{[%clk 0:00:07.3]} 31. Rf4 {[%clk 0:00:15.2]} 31... Rg8 {[%clk 0:00:07.7]} 32.
Ne6 {[%clk 0:00:14.5]} 32... Bxe6 {[%clk 0:00:06.9]} 33. Qxe6 {[%clk 0:00:15.4]}
33... Raf8 {[%clk 0:00:07]} 34. Qxb6 {[%clk 0:00:15.1]} 34... f5 {[%clk
0:00:06.2]} 35. Qc5 {[%clk 0:00:14.4]} 35... Ng6 {[%clk 0:00:06.7]} 36. Rf2
{[%clk 0:00:14]} 36... f4 {[%clk 0:00:07]} 37. e4 {[%clk 0:00:13.7]} 37... f3
{[%clk 0:00:06.5]} 38. g3 {[%clk 0:00:13.7]} 38... Ne5 {[%clk 0:00:04.1]} 39. g4
{[%clk 0:00:13.6]} 39... h5 {[%clk 0:00:03.9]} 40. Rh2 {[%clk 0:00:06.6]} 40...
Qg5 {[%clk 0:00:02.1]} 41. Qf2 {[%clk 0:00:05.9]} 1-0

[Event "Early-Titled-Tuesday-Blitz-January-23-2024"]
[Site "Chess.com"]
[Date "2024.01.23"]
[Round "7"]
[White "tigurones"]
[Black "chess123456s"]
[Result "1-0"]
[WhiteElo "2434"]
[BlackElo "2539"]
[TimeControl "180+1"]
[EndTime "9:18:01 PST"]
[Termination "tigurones won by checkmate"]

1. d4 {[%clk 0:03:00.9]} 1... Nf6 {[%clk 0:02:59.8]} 2. Nf3 {[%clk 0:02:59.7]}
2... d5 {[%clk 0:02:58.5]} 3. Bf4 {[%clk 0:02:57.4]} 3... c5 {[%clk 0:02:58.5]}
4. e3 {[%clk 0:02:57.2]} 4... Nc6 {[%clk 0:02:58.3]} 5. c3 {[%clk 0:02:56.2]}
5... e6 {[%clk 0:02:55.5]} 6. Nbd2 {[%clk 0:02:55]} 6... Bd6 {[%clk 0:02:54]} 7.
Bg3 {[%clk 0:02:54.4]} 7... O-O {[%clk 0:02:53]} 8. Bd3 {[%clk 0:02:54.5]} 8...
b6 {[%clk 0:02:53.3]} 9. e4 {[%clk 0:02:55]} 9... Be7 {[%clk 0:02:53.4]} 10. e5
{[%clk 0:02:54.9]} 10... Nh5 {[%clk 0:02:53.5]} 11. Ng5 {[%clk 0:02:54.9]} 11...
Bxg5 {[%clk 0:02:54.1]} 12. Qxh5 {[%clk 0:02:53.3]} 12... g6 {[%clk 0:02:54.5]}
13. Qg4 {[%clk 0:02:48.3]} 13... cxd4 {[%clk 0:02:52.1]} 14. cxd4 {[%clk
0:02:46.7]} 14... h5 {[%clk 0:02:47.6]} 15. Qd1 {[%clk 0:02:38.6]} 15... Nxd4
{[%clk 0:02:47.5]} 16. Nf3 {[%clk 0:02:35.3]} 16... Nxf3+ {[%clk 0:02:45.2]} 17.
Qxf3 {[%clk 0:02:36.2]} 17... h4 {[%clk 0:02:45.1]} 18. Bf4 {[%clk 0:02:33.7]}
18... Bb7 {[%clk 0:02:25.4]} 19. O-O {[%clk 0:02:29.8]} 19... h3 {[%clk
0:02:16.6]} 20. Qg3 {[%clk 0:02:05.3]} 20... Bxf4 {[%clk 0:02:11.6]} 21. Qxf4
{[%clk 0:02:04.5]} 21... hxg2 {[%clk 0:02:11.6]} 22. Rfe1 {[%clk 0:02:03.8]}
22... Kg7 {[%clk 0:02:06.5]} 23. Re3 {[%clk 0:01:54]} 23... Rh8 {[%clk
0:01:51.4]} 24. Rf3 {[%clk 0:01:53.1]} 24... Qe7 {[%clk 0:01:50.8]} 25. Qg3
{[%clk 0:01:52.3]} 25... Rh5 {[%clk 0:01:45.2]} 26. Rf6 {[%clk 0:01:48.3]} 26...
Rh6 {[%clk 0:01:14.5]} 27. Rc1 {[%clk 0:01:42.3]} 27... Rah8 {[%clk 0:01:10.8]}
28. Qxg2 {[%clk 0:01:26.1]} 28... d4 {[%clk 0:01:03.6]} 29. Qg3 {[%clk
0:01:01.6]} 29... Rh3 {[%clk 0:00:54.3]} 30. Qg5 {[%clk 0:00:28.5]} 30... Rxd3
{[%clk 0:00:33.8]} 31. Kf1 {[%clk 0:00:25.1]} 31... Rf3 {[%clk 0:00:19.9]} 32.
Rxg6+ {[%clk 0:00:18.1]} 32... Kf8 {[%clk 0:00:20.3]} 33. Rf6 {[%clk 0:00:18.4]}
33... Ba6+ {[%clk 0:00:13.5]} 34. Ke1 {[%clk 0:00:17.2]} 34... Qb4+ {[%clk
0:00:13]} 35. Kd1 {[%clk 0:00:16.9]} 35... Rd3+ {[%clk 0:00:07.6]} 36. Kc2
{[%clk 0:00:16.2]} 36... Qa4+ {[%clk 0:00:08.1]} 37. Kb1 {[%clk 0:00:16]} 37...
Qd7 {[%clk 0:00:06.7]} 38. Rxf7+ {[%clk 0:00:14.3]} 38... Kxf7 {[%clk
0:00:05.1]} 39. Qf6+ {[%clk 0:00:14.5]} 39... Kg8 {[%clk 0:00:04.9]} 40. Rg1+
{[%clk 0:00:14.1]} 40... Kh7 {[%clk 0:00:04.4]} 41. Qg6# {[%clk 0:00:13.6]} 1-0

[Event "Early-Titled-Tuesday-Blitz-January-23-2024"]
[Site "Chess.com"]
[Date "2024.01.23"]
[Round "7"]
[White "RichardLeyvaP"]
[Black "Gabrielian_Artur"]
[Result "0-1"]
[WhiteElo "2499"]
[BlackElo "2774"]
[TimeControl "180+1"]
[EndTime "9:18:02 PST"]
[Termination "Gabrielian_Artur won on time"]

1. e4 {[%clk 0:02:58.1]} 1... c5 {[%clk 0:02:59.8]} 2. Nf3 {[%clk 0:02:57.5]}
2... d6 {[%clk 0:03:00.3]} 3. d4 {[%clk 0:02:57]} 3... cxd4 {[%clk 0:03:00.7]}
4. Nxd4 {[%clk 0:02:57.6]} 4... Nf6 {[%clk 0:03:00.6]} 5. Nc3 {[%clk 0:02:57.7]}
5... Nc6 {[%clk 0:03:00.6]} 6. Bc4 {[%clk 0:02:57.5]} 6... Qb6 {[%clk
0:02:57.5]} 7. Nxc6 {[%clk 0:02:56.5]} 7... bxc6 {[%clk 0:02:57.4]} 8. O-O
{[%clk 0:02:57.3]} 8... g6 {[%clk 0:02:56.7]} 9. Qe2 {[%clk 0:02:57.1]} 9... Bg4
{[%clk 0:01:51.9]} 10. Qd3 {[%clk 0:02:43]} 10... Bg7 {[%clk 0:01:50.6]} 11. Kh1
{[%clk 0:02:26.4]} 11... O-O {[%clk 0:01:47.7]} 12. Be3 {[%clk 0:02:23.6]} 12...
Qxb2 {[%clk 0:01:42.9]} 13. Rab1 {[%clk 0:02:23.1]} 13... Qa3 {[%clk 0:01:42.7]}
14. Nd5 {[%clk 0:02:23.1]} 14... Qxd3 {[%clk 0:01:39.6]} 15. Nxe7+ {[%clk
0:02:23.3]} 15... Kh8 {[%clk 0:01:39.6]} 16. cxd3 {[%clk 0:02:00.4]} 16... Bd7
{[%clk 0:01:38.8]} 17. Bf4 {[%clk 0:01:49.9]} 17... Rfe8 {[%clk 0:01:30.2]} 18.
Bxd6 {[%clk 0:01:44.4]} 18... Bf8 {[%clk 0:01:30.3]} 19. Bxf7 {[%clk 0:01:30.7]}
19... Bxe7 {[%clk 0:01:20]} 20. Bxe8 {[%clk 0:01:24.7]} 20... Bxd6 {[%clk
0:01:17.6]} 21. Bxd7 {[%clk 0:01:23]} 21... Nxd7 {[%clk 0:01:17.6]} 22. d4
{[%clk 0:01:22.2]} 22... Nb6 {[%clk 0:01:00.9]} 23. Rbc1 {[%clk 0:01:18.9]}
23... Rc8 {[%clk 0:01:00.3]} 24. g3 {[%clk 0:01:11.6]} 24... Kg7 {[%clk
0:00:58.6]} 25. Kg2 {[%clk 0:01:11.8]} 25... Kf7 {[%clk 0:00:58.1]} 26. f4
{[%clk 0:01:09]} 26... Ke7 {[%clk 0:00:57.8]} 27. g4 {[%clk 0:00:56.6]} 27...
Kd7 {[%clk 0:00:56.4]} 28. e5 {[%clk 0:00:55.5]} 28... Ba3 {[%clk 0:00:54.9]}
29. Rc3 {[%clk 0:00:52.3]} 29... Bb4 {[%clk 0:00:54.5]} 30. Rb3 {[%clk
0:00:50.2]} 30... Nd5 {[%clk 0:00:53.6]} 31. a3 {[%clk 0:00:45.1]} 31... Bd2
{[%clk 0:00:48]} 32. Rb7+ {[%clk 0:00:43.9]} 32... Rc7 {[%clk 0:00:46.7]} 33.
Rxc7+ {[%clk 0:00:43.6]} 33... Kxc7 {[%clk 0:00:47.1]} 34. Kg3 {[%clk
0:00:41.7]} 34... Be3 {[%clk 0:00:45]} 35. f5 {[%clk 0:00:29.9]} 35... Bxd4
{[%clk 0:00:44.5]} 36. e6 {[%clk 0:00:27.8]} 36... Kd6 {[%clk 0:00:43.1]} 37.
Rd1 {[%clk 0:00:08.7]} 37... Bf6 {[%clk 0:00:38]} 38. Kf3 {[%clk 0:00:06.4]}
38... gxf5 {[%clk 0:00:35.6]} 39. gxf5 {[%clk 0:00:06.2]} 39... Ke5 {[%clk
0:00:35.2]} 40. Rc1 {[%clk 0:00:02.4]} 40... Kd6 {[%clk 0:00:34.8]} 41. Kg4
{[%clk 0:00:01.4]} 41... c5 {[%clk 0:00:31.8]} 42. Kh5 {[%clk 0:00:01.3]} 42...
Bb2 {[%clk 0:00:26.2]} 43. Rc2 {[%clk 0:00:01.1]} 43... Bd4 {[%clk 0:00:22.5]}
0-1